[Event "Titled Tuesday Blitz December 20 Late 2022"]
[White "Olsen, Filip Boe"]
[Black "Sztokbant, Bernardo Vainzoff"]
[WhiteFideId "1440640"]
[BlackFideId "2115956"]
[WhiteElo "2333"]
[BlackElo "2222"]
[Result "1/2-1/2"]
[Round "08"]
[TimeControl "180+1"]
[Date "2022.12.21"]
[WhiteClock "0:00:27"]
[BlackClock "0:00:03"]

1. Nf3 {[%clk 0:03:00]}  d5 {[%clk 0:03:00]} 2. c4 {[%clk 0:03:00]}  Nf6 {[%clk 0:02:58]} 3. cxd5 {[%clk 0:02:59]}  Nxd5 {[%clk 0:02:59]} 4. g3 {[%clk 0:02:59]}  g6 {[%clk 0:02:59]} 5. Bg2 {[%clk 0:03:00]}  Bg7 {[%clk 0:02:59]} 6. Nc3 {[%clk 0:03:00]}  O-O {[%clk 0:02:59]} 7. O-O {[%clk 0:03:00]}  c5 {[%clk 0:02:59]} 8. d3 {[%clk 0:02:55]}  Nc6 {[%clk 0:02:57]} 9. Ng5 {[%clk 0:02:52]}  Nxc3 {[%clk 0:02:56]} 10. bxc3 {[%clk 0:02:53]}  Qd7 {[%clk 0:02:37]} 11. Rb1 {[%clk 0:02:18]}  h6 {[%clk 0:02:32]} 12. Ne4 {[%clk 0:02:17]}  b6 {[%clk 0:02:31]} 13. Be3 {[%clk 0:02:08]}  Bb7 {[%clk 0:02:20]} 14. c4 {[%clk 0:01:50]}  f5 {[%clk 0:02:04]} 15. Nd2 {[%clk 0:01:48]}  Nd4 {[%clk 0:01:45]} 16. Bxb7 {[%clk 0:01:41]}  Qxb7 {[%clk 0:01:46]} 17. Nb3 {[%clk 0:01:41]}  Qd7 {[%clk 0:01:33]} 18. Qd2 {[%clk 0:01:35]}  Kh7 {[%clk 0:01:33]} 19. Bxd4 {[%clk 0:01:30]}  cxd4 {[%clk 0:01:32]} 20. c5 {[%clk 0:01:31]}  f4 {[%clk 0:01:29]} 21. Rfc1 {[%clk 0:01:27]}  f3 {[%clk 0:01:11]} 22. c6 {[%clk 0:01:17]}  Qd5 {[%clk 0:00:58]} 23. exf3 {[%clk 0:00:59]}  Rxf3 {[%clk 0:00:59]} 24. Qe2 {[%clk 0:00:56]}  Rf7 {[%clk 0:00:24]} 25. Nd2 {[%clk 0:00:49]}  Rc8 {[%clk 0:00:21]} 26. Qe4 {[%clk 0:00:47]}  Qxa2 {[%clk 0:00:15]} 27. Nf3 {[%clk 0:00:44]}  Rcf8 {[%clk 0:00:11]} 28. c7 {[%clk 0:00:35]}  Rxf3 {[%clk 0:00:11]} 29. c8=Q {[%clk 0:00:33]}  Qxf2+ {[%clk 0:00:10]} 30. Kh1 {[%clk 0:00:33]}  Rxc8 {[%clk 0:00:08]} 31. Rxc8 {[%clk 0:00:33]}  Re3 {[%clk 0:00:06]} 32. Qg2 {[%clk 0:00:27]}  Qxg2+ {[%clk 0:00:03]} 33. Kxg2 {[%clk 0:00:27]}  Rxd3 {[%clk 0:00:04]} 34. Rc7 {[%clk 0:00:27]}  Rd2+ {[%clk 0:00:03]} 35. Kg1 {[%clk 0:00:26]}  Bf6 {[%clk 0:00:03]} 36. Rxa7 {[%clk 0:00:26]}  d3 {[%clk 0:00:03]} 37. Rxb6 {[%clk 0:00:23]}  Bd4+ {[%clk 0:00:03]} 38. Kf1 {[%clk 0:00:21]}  Bxb6 {[%clk 0:00:04]} 39. Rxe7+ {[%clk 0:00:21]}  Kg8 {[%clk 0:00:04]} 40. Re6 {[%clk 0:00:21]}  Bd4 {[%clk 0:00:03]} 41. Rxg6+ {[%clk 0:00:21]}  Bg7 {[%clk 0:00:04]} 42. Rd6 {[%clk 0:00:22]}  Rxh2 {[%clk 0:00:04]} 43. Rxd3 {[%clk 0:00:21]}  Rb2 {[%clk 0:00:04]} 44. Kg1 {[%clk 0:00:22]}  Kh7 {[%clk 0:00:05]} 45. Rd5 {[%clk 0:00:22]}  Rb6 {[%clk 0:00:05]} 46. Kf2 {[%clk 0:00:21]}  Rg6 {[%clk 0:00:06]} 47. Kf3 {[%clk 0:00:22]}  Rg5 {[%clk 0:00:06]} 48. Rd6 {[%clk 0:00:21]}  Be5 {[%clk 0:00:03]} 49. Rd7+ {[%clk 0:00:18]}  Kg6 {[%clk 0:00:02]} 50. g4 {[%clk 0:00:19]}  Kf6 {[%clk 0:00:01]} 51. Ra7 {[%clk 0:00:19]}  Rg6 {[%clk 0:00:02]} 52. Ra6+ {[%clk 0:00:19]}  Kf7 {[%clk 0:00:02]} 53. Rxg6 {[%clk 0:00:19]}  Kxg6 {[%clk 0:00:02]} 54. Kg2 {[%clk 0:00:20]}  Kg5 {[%clk 0:00:03]} 55. Kh1 {[%clk 0:00:21]}  Bf4 {[%clk 0:00:03]} 56. Kg2 {[%clk 0:00:22]}  Kh4 {[%clk 0:00:03]} 57. Kf3 {[%clk 0:00:23]}  Be5 {[%clk 0:00:03]} 58. Kg2 {[%clk 0:00:23]}  Bd6 {[%clk 0:00:03]} 59. Kh1 {[%clk 0:00:24]}  Kh3 {[%clk 0:00:03]} 60. Kg1 {[%clk 0:00:25]}  Be5 {[%clk 0:00:03]} 61. Kh1 {[%clk 0:00:26]}  Bf4 {[%clk 0:00:03]} 62. Kg1 {[%clk 0:00:26]}  Be3+ {[%clk 0:00:03]} 63. Kh1 {[%clk 0:00:27]}  Bd4 {[%clk 0:00:03]} 64. g5 {[%clk 0:00:27]}  hxg5 {[%clk 0:00:03]} 1/2-1/2


[Site "https://www.chess.com"]

[Event "Titled Tuesday Blitz December 20 Late 2022"]
[White "Pakleza, Zbigniew"]
[Black "Sarana, Alexey"]
[WhiteFideId "1119290"]
[BlackFideId "24133795"]
[WhiteElo "2410"]
[BlackElo "2708"]
[Result "0-1"]
[Round "08"]
[TimeControl "180+1"]
[Date "2022.12.20"]
[WhiteClock "0:00:02"]
[BlackClock "0:00:33"]

1. d4 {[%clk 0:02:58]}  Nf6 {[%clk 0:03:00]} 2. Nf3 {[%clk 0:02:58]}  d5 {[%clk 0:03:00]} 3. Bf4 {[%clk 0:02:58]}  c5 {[%clk 0:02:58]} 4. c3 {[%clk 0:02:59]}  Nc6 {[%clk 0:02:58]} 5. Nbd2 {[%clk 0:02:58]}  Qb6 {[%clk 0:02:53]} 6. Qb3 {[%clk 0:02:58]}  c4 {[%clk 0:02:53]} 7. Qc2 {[%clk 0:02:58]}  Bg4 {[%clk 0:02:51]} 8. b3 {[%clk 0:02:54]}  cxb3 {[%clk 0:02:50]} 9. Qxb3 {[%clk 0:02:54]}  e6 {[%clk 0:02:45]} 10. e3 {[%clk 0:02:47]}  Nd7 {[%clk 0:02:44]} 11. h3 {[%clk 0:02:43]}  Bh5 {[%clk 0:02:43]} 12. Be2 {[%clk 0:02:36]}  Be7 {[%clk 0:02:41]} 13. O-O {[%clk 0:02:35]}  O-O {[%clk 0:02:40]} 14. c4 {[%clk 0:02:33]}  Qxb3 {[%clk 0:02:15]} 15. axb3 {[%clk 0:02:11]}  Bb4 {[%clk 0:02:15]} 16. Rfd1 {[%clk 0:02:10]}  Rfc8 {[%clk 0:02:13]} 17. Kf1 {[%clk 0:01:34]}  h6 {[%clk 0:02:12]} 18. Ne1 {[%clk 0:01:32]}  Bg6 {[%clk 0:02:11]} 19. Bd3 {[%clk 0:01:30]}  Bc3 {[%clk 0:01:47]} 20. Rac1 {[%clk 0:01:25]}  Bxd2 {[%clk 0:01:46]} 21. Rxd2 {[%clk 0:01:24]}  Na5 {[%clk 0:01:47]} 22. Rb2 {[%clk 0:01:04]}  b6 {[%clk 0:00:43]} 23. Bxg6 {[%clk 0:01:03]}  fxg6 {[%clk 0:00:43]} 24. Ra1 {[%clk 0:00:26]}  dxc4 {[%clk 0:00:42]} 25. bxc4 {[%clk 0:00:27]}  Nxc4 {[%clk 0:00:41]} 26. Rba2 {[%clk 0:00:27]}  a5 {[%clk 0:00:41]} 27. Nd3 {[%clk 0:00:27]}  b5 {[%clk 0:00:41]} 28. Ke2 {[%clk 0:00:27]}  Ndb6 {[%clk 0:00:40]} 29. Bg3 {[%clk 0:00:19]}  Nd5 {[%clk 0:00:40]} 30. Ke1 {[%clk 0:00:16]}  b4 {[%clk 0:00:37]} 31. Nc5 {[%clk 0:00:11]}  e5 {[%clk 0:00:37]} 32. Rc2 {[%clk 0:00:04]}  Na3 {[%clk 0:00:33]} 33. Rxa3 {[%clk 0:00:02]}  bxa3 {[%clk 0:00:33]} 34. Bxe5 {[%clk 0:00:02]}  Nb4 {[%clk 0:00:33]} 0-1


[Site "https://www.chess.com"]

[Event "Titled Tuesday Blitz December 20 Late 2022"]
[White "Poliakova, Varvara"]
[Black "Zakhartsov, Vladimir"]
[WhiteFideId "13518313"]
[BlackFideId "4145097"]
[WhiteElo "2075"]
[BlackElo "2535"]
[Result "0-1"]
[Round "08"]
[TimeControl "180+1"]
[Date "2022.12.20"]
[WhiteClock "0:00:02"]
[BlackClock "0:00:04"]

1. e4 {[%clk 0:02:54]}  c5 {[%clk 0:02:59]} 2. Nf3 {[%clk 0:02:53]}  Nc6 {[%clk 0:02:59]} 3. d4 {[%clk 0:02:53]}  cxd4 {[%clk 0:03:00]} 4. Nxd4 {[%clk 0:02:54]}  Nf6 {[%clk 0:03:00]} 5. Nc3 {[%clk 0:02:54]}  e6 {[%clk 0:03:01]} 6. Ndb5 {[%clk 0:02:53]}  Bc5 {[%clk 0:03:01]} 7. Bf4 {[%clk 0:02:51]}  O-O {[%clk 0:03:00]} 8. Bd6 {[%clk 0:02:51]}  Bxd6 {[%clk 0:03:00]} 9. Nxd6 {[%clk 0:02:52]}  a6 {[%clk 0:02:49]} 10. a4 {[%clk 0:02:50]}  Qb6 {[%clk 0:02:44]} 11. Nc4 {[%clk 0:02:38]}  Qc5 {[%clk 0:02:41]} 12. Qd6 {[%clk 0:02:34]}  Qg5 {[%clk 0:02:17]} 13. Qd2 {[%clk 0:02:22]}  Qg6 {[%clk 0:02:06]} 14. Bd3 {[%clk 0:02:20]}  e5 {[%clk 0:01:59]} 15. Nd6 {[%clk 0:02:12]}  Ne8 {[%clk 0:01:37]} 16. Nf5 {[%clk 0:02:12]}  d6 {[%clk 0:01:34]} 17. O-O-O {[%clk 0:02:05]}  Be6 {[%clk 0:01:31]} 18. Nd5 {[%clk 0:02:05]}  Kh8 {[%clk 0:01:29]} 19. h4 {[%clk 0:01:59]}  h6 {[%clk 0:01:09]} 20. g4 {[%clk 0:01:52]}  b5 {[%clk 0:01:07]} 21. g5 {[%clk 0:01:43]}  h5 {[%clk 0:01:06]} 22. Nfe7 {[%clk 0:01:42]}  Nxe7 {[%clk 0:01:03]} 23. Nxe7 {[%clk 0:01:43]}  Qh7 {[%clk 0:01:04]} 24. Rdg1 {[%clk 0:01:34]}  g6 {[%clk 0:01:00]} 25. f4 {[%clk 0:01:32]}  exf4 {[%clk 0:00:58]} 26. Qxf4 {[%clk 0:01:25]}  bxa4 {[%clk 0:00:51]} 27. e5 {[%clk 0:01:01]}  dxe5 {[%clk 0:00:52]} 28. Qxe5+ {[%clk 0:01:02]}  Qg7 {[%clk 0:00:52]} 29. Nc6 {[%clk 0:00:57]}  Qxe5 {[%clk 0:00:35]} 30. Nxe5 {[%clk 0:00:58]}  Nd6 {[%clk 0:00:36]} 31. Rf1 {[%clk 0:00:55]}  Rfc8 {[%clk 0:00:25]} 32. Rf6 {[%clk 0:00:52]}  Ne8 {[%clk 0:00:20]} 33. Nxf7+ {[%clk 0:00:38]}  Bxf7 {[%clk 0:00:11]} 34. Rxf7 {[%clk 0:00:39]}  Rab8 {[%clk 0:00:05]} 35. Re1 {[%clk 0:00:34]}  Nd6 {[%clk 0:00:04]} 36. Rd7 {[%clk 0:00:32]}  Rd8 {[%clk 0:00:02]} 37. Ree7 {[%clk 0:00:31]}  Rxd7 {[%clk 0:00:02]} 38. Rxd7 {[%clk 0:00:32]}  Nf5 {[%clk 0:00:03]} 39. Bxf5 {[%clk 0:00:25]}  gxf5 {[%clk 0:00:04]} 40. Rd4 {[%clk 0:00:18]}  Rf8 {[%clk 0:00:02]} 41. Rf4 {[%clk 0:00:18]}  Kg7 {[%clk 0:00:02]} 42. Kd2 {[%clk 0:00:18]}  Kg6 {[%clk 0:00:03]} 43. Ke3 {[%clk 0:00:17]}  Re8+ {[%clk 0:00:03]} 44. Kf3 {[%clk 0:00:17]}  Rb8 {[%clk 0:00:03]} 45. Rxa4 {[%clk 0:00:17]}  Rxb2 {[%clk 0:00:04]} 46. Rxa6+ {[%clk 0:00:18]}  Kg7 {[%clk 0:00:04]} 47. Rc6 {[%clk 0:00:18]}  Rb4 {[%clk 0:00:04]} 48. c4 {[%clk 0:00:19]}  Rb1 {[%clk 0:00:04]} 49. Kf4 {[%clk 0:00:19]}  Rf1+ {[%clk 0:00:04]} 50. Ke5 {[%clk 0:00:20]}  f4 {[%clk 0:00:05]} 51. Rc7+ {[%clk 0:00:19]}  Kg6 {[%clk 0:00:05]} 52. Rc6+ {[%clk 0:00:20]}  Kg7 {[%clk 0:00:05]} 53. Rf6 {[%clk 0:00:20]}  f3 {[%clk 0:00:06]} 54. Kd5 {[%clk 0:00:18]}  f2 {[%clk 0:00:04]} 55. Kc5 {[%clk 0:00:19]}  Rh1 {[%clk 0:00:03]} 56. Rxf2 {[%clk 0:00:19]}  Rxh4 {[%clk 0:00:04]} 57. Kb5 {[%clk 0:00:11]}  Kg6 {[%clk 0:00:04]} 58. c5 {[%clk 0:00:12]}  Rh1 {[%clk 0:00:04]} 59. Rc2 {[%clk 0:00:11]}  Rf1 {[%clk 0:00:04]} 60. c6 {[%clk 0:00:11]}  Rf8 {[%clk 0:00:04]} 61. c7 {[%clk 0:00:12]}  Rc8 {[%clk 0:00:04]} 62. Kc6 {[%clk 0:00:10]}  Kxg5 {[%clk 0:00:04]} 63. Rg2+ {[%clk 0:00:09]}  Kf4 {[%clk 0:00:04]} 64. Kd7 {[%clk 0:00:07]}  Ra8 {[%clk 0:00:04]} 65. Rb2 {[%clk 0:00:06]}  Ra7 {[%clk 0:00:02]} 66. Kd6 {[%clk 0:00:06]}  Rxc7 {[%clk 0:00:02]} 67. Kxc7 {[%clk 0:00:07]}  h4 {[%clk 0:00:03]} 68. Kd6 {[%clk 0:00:07]}  h3 {[%clk 0:00:03]} 69. Kd5 {[%clk 0:00:07]}  Kg3 {[%clk 0:00:04]} 70. Ke4 {[%clk 0:00:07]}  h2 {[%clk 0:00:04]} 71. Rb3+ {[%clk 0:00:08]}  Kg2 {[%clk 0:00:04]} 72. Rb2+ {[%clk 0:00:08]}  Kg1 {[%clk 0:00:04]} 73. Kf3 {[%clk 0:00:05]}  h1=Q+ {[%clk 0:00:05]} 74. Kg3 {[%clk 0:00:06]}  Qe4 {[%clk 0:00:05]} 75. Rb3 {[%clk 0:00:04]}  Qe5+ {[%clk 0:00:05]} 76. Kh4 {[%clk 0:00:03]}  Qf6+ {[%clk 0:00:04]} 77. Kg3 {[%clk 0:00:02]}  Qg5+ {[%clk 0:00:04]} 78. Kf3 {[%clk 0:00:02]}  Qd5+ {[%clk 0:00:04]} 0-1


[Site "https://www.chess.com"]

[Event "Titled Tuesday Blitz December 20 Late 2022"]
[White "Rego, Pedro Filipe"]
[Black "Baches Garcia, Guillermo"]
[WhiteFideId "1904310"]
[BlackFideId "2209764"]
[WhiteElo "2193"]
[BlackElo "2480"]
[Result "1-0"]
[Round "08"]
[TimeControl "180+1"]
[Date "2022.12.21"]
[WhiteClock "0:00:49"]
[BlackClock "0:00:32"]

1. f4 {[%clk 0:03:00]}  d5 {[%clk 0:02:56]} 2. Nf3 {[%clk 0:02:57]}  c6 {[%clk 0:02:52]} 3. b3 {[%clk 0:02:55]}  Nf6 {[%clk 0:02:45]} 4. Bb2 {[%clk 0:02:54]}  Qb6 {[%clk 0:02:43]} 5. e3 {[%clk 0:02:50]}  Bg4 {[%clk 0:02:42]} 6. Be2 {[%clk 0:02:48]}  Nbd7 {[%clk 0:02:38]} 7. O-O {[%clk 0:02:44]}  Bxf3 {[%clk 0:02:34]} 8. Bxf3 {[%clk 0:02:44]}  e6 {[%clk 0:02:33]} 9. Qe2 {[%clk 0:02:34]}  Bd6 {[%clk 0:02:29]} 10. c4 {[%clk 0:02:26]}  Bxf4 {[%clk 0:02:07]} 11. Bd4 {[%clk 0:02:19]}  c5 {[%clk 0:02:04]} 12. Bxf6 {[%clk 0:02:15]}  Bxh2+ {[%clk 0:01:57]} 13. Kxh2 {[%clk 0:02:16]}  Nxf6 {[%clk 0:01:55]} 14. cxd5 {[%clk 0:02:13]}  exd5 {[%clk 0:01:53]} 15. Nc3 {[%clk 0:02:12]}  Rd8 {[%clk 0:01:45]} 16. Qb5+ {[%clk 0:02:04]}  Ke7 {[%clk 0:01:42]} 17. Qxb6 {[%clk 0:01:56]}  axb6 {[%clk 0:01:42]} 18. Rae1 {[%clk 0:01:56]}  Rhe8 {[%clk 0:01:30]} 19. e4 {[%clk 0:01:55]}  d4 {[%clk 0:01:30]} 20. Nd5+ {[%clk 0:01:54]}  Nxd5 {[%clk 0:01:31]} 21. exd5+ {[%clk 0:01:55]}  Kd6 {[%clk 0:01:31]} 22. a4 {[%clk 0:01:39]}  f5 {[%clk 0:01:23]} 23. Kg3 {[%clk 0:01:35]}  g5 {[%clk 0:01:23]} 24. Bh5 {[%clk 0:01:30]}  f4+ {[%clk 0:01:09]} 25. Kg4 {[%clk 0:01:26]}  Rxe1 {[%clk 0:01:09]} 26. Rxe1 {[%clk 0:01:26]}  Kxd5 {[%clk 0:01:09]} 27. Kxg5 {[%clk 0:01:24]}  d3 {[%clk 0:00:53]} 28. Kxf4 {[%clk 0:01:08]}  Rf8+ {[%clk 0:00:48]} 29. Ke3 {[%clk 0:01:05]}  c4 {[%clk 0:00:40]} 30. bxc4+ {[%clk 0:01:05]}  Kxc4 {[%clk 0:00:40]} 31. Rb1 {[%clk 0:01:03]}  Rf5 {[%clk 0:00:36]} 32. Bf3 {[%clk 0:00:59]}  Re5+ {[%clk 0:00:35]} 33. Be4 {[%clk 0:00:56]}  h5 {[%clk 0:00:32]} 34. Rxb6 {[%clk 0:00:52]}  h4 {[%clk 0:00:32]} 35. Rxb7 {[%clk 0:00:49]} 1-0


[Site "https://www.chess.com"]

[Event "Titled Tuesday Blitz December 20 Late 2022"]
[White "Rorrer, Grayson"]
[Black "Renjith, Sravan"]
[WhiteFideId "30944996"]
[BlackFideId "4306783"]
[WhiteElo "2200"]
[BlackElo "2072"]
[Result "1-0"]
[Round "08"]
[TimeControl "180+1"]
[Date "2022.12.21"]
[WhiteClock "0:01:20"]
[BlackClock "0:00:19"]

1. e4 {[%clk 0:03:00]}  e5 {[%clk 0:02:59]} 2. Nc3 {[%clk 0:03:00]}  Nf6 {[%clk 0:02:59]} 3. d4 {[%clk 0:03:00]}  exd4 {[%clk 0:02:59]} 4. Qxd4 {[%clk 0:03:01]}  Nc6 {[%clk 0:02:59]} 5. Qd3 {[%clk 0:03:02]}  Bb4 {[%clk 0:02:55]} 6. Bd2 {[%clk 0:03:02]}  O-O {[%clk 0:02:55]} 7. O-O-O {[%clk 0:03:03]}  Re8 {[%clk 0:02:56]} 8. Nge2 {[%clk 0:03:03]}  Ne5 {[%clk 0:02:49]} 9. Qg3 {[%clk 0:03:02]}  d6 {[%clk 0:02:40]} 10. Bg5 {[%clk 0:02:59]}  h6 {[%clk 0:02:19]} 11. Bxf6 {[%clk 0:02:53]}  Qxf6 {[%clk 0:02:00]} 12. Nd5 {[%clk 0:02:53]}  Qe6 {[%clk 0:01:29]} 13. Nxb4 {[%clk 0:02:44]}  a5 {[%clk 0:01:29]} 14. Nd4 {[%clk 0:02:43]}  Qd7 {[%clk 0:01:21]} 15. Nd5 {[%clk 0:02:41]}  Kh8 {[%clk 0:01:14]} 16. Nf5 {[%clk 0:02:38]}  Ng6 {[%clk 0:01:13]} 17. Qc3 {[%clk 0:02:35]}  f6 {[%clk 0:01:11]} 18. Nxc7 {[%clk 0:02:28]}  Rxe4 {[%clk 0:01:08]} 19. Nxa8 {[%clk 0:02:24]}  Qxf5 {[%clk 0:01:08]} 20. Bd3 {[%clk 0:02:21]}  Qg5+ {[%clk 0:01:08]} 21. Kb1 {[%clk 0:02:17]}  Re8 {[%clk 0:01:09]} 22. g3 {[%clk 0:02:15]}  Bg4 {[%clk 0:01:08]} 23. f4 {[%clk 0:02:10]}  Qh5 {[%clk 0:01:03]} 24. Nc7 {[%clk 0:02:02]}  Rc8 {[%clk 0:01:03]} 25. Rde1 {[%clk 0:02:01]}  Nf8 {[%clk 0:00:56]} 26. h3 {[%clk 0:01:51]}  Bd7 {[%clk 0:00:53]} 27. g4 {[%clk 0:01:49]}  Qf7 {[%clk 0:00:53]} 28. Bc4 {[%clk 0:01:42]}  Qg6 {[%clk 0:00:48]} 29. Nd5 {[%clk 0:01:38]}  Qh7 {[%clk 0:00:34]} 30. Ne7 {[%clk 0:01:36]}  Rc5 {[%clk 0:00:31]} 31. Qd3 {[%clk 0:01:32]}  g6 {[%clk 0:00:25]} 32. Bb3 {[%clk 0:01:31]}  Qg7 {[%clk 0:00:20]} 33. Qxd6 {[%clk 0:01:29]}  Rb5 {[%clk 0:00:20]} 34. Nd5 {[%clk 0:01:23]}  Bc6 {[%clk 0:00:19]} 35. Re7 {[%clk 0:01:20]} 1-0


[Site "https://www.chess.com"]

[Event "Titled Tuesday Blitz December 20 Late 2022"]
[White "Rosenberg, Evan S"]
[Black "Dias, Joao Batista"]
[WhiteFideId "2019299"]
[BlackFideId "2108240"]
[WhiteElo "2411"]
[BlackElo "1898"]
[Result "1-0"]
[Round "08"]
[TimeControl "180+1"]
[Date "2022.12.21"]
[WhiteClock "0:01:22"]
[BlackClock "0:02:11"]

1. d4 {[%clk 0:03:00]}  d5 {[%clk 0:02:59]} 2. Nf3 {[%clk 0:03:01]}  c6 {[%clk 0:02:59]} 3. c3 {[%clk 0:03:00]}  g6 {[%clk 0:02:59]} 4. Bf4 {[%clk 0:02:55]}  Bg7 {[%clk 0:02:59]} 5. h3 {[%clk 0:02:55]}  Nf6 {[%clk 0:02:59]} 6. Nbd2 {[%clk 0:02:49]}  O-O {[%clk 0:02:59]} 7. Qc2 {[%clk 0:02:48]}  Re8 {[%clk 0:03:00]} 8. e4 {[%clk 0:02:39]}  dxe4 {[%clk 0:02:58]} 9. Nxe4 {[%clk 0:02:39]}  Nxe4 {[%clk 0:02:58]} 10. Qxe4 {[%clk 0:02:39]}  Bf5 {[%clk 0:02:58]} 11. Qe3 {[%clk 0:02:38]}  Nd7 {[%clk 0:02:56]} 12. Ne5 {[%clk 0:02:27]}  Nxe5 {[%clk 0:02:53]} 13. Bxe5 {[%clk 0:02:28]}  f6 {[%clk 0:02:53]} 14. Bc4+ {[%clk 0:02:27]}  Kh8 {[%clk 0:02:52]} 15. Bh2 {[%clk 0:01:56]}  e5 {[%clk 0:02:52]} 16. O-O-O {[%clk 0:01:55]}  exd4 {[%clk 0:02:51]} 17. Qxd4 {[%clk 0:01:52]}  Qxd4 {[%clk 0:02:49]} 18. Rxd4 {[%clk 0:01:51]}  Rad8 {[%clk 0:02:44]} 19. Rxd8 {[%clk 0:01:43]}  Rxd8 {[%clk 0:02:42]} 20. Re1 {[%clk 0:01:41]}  Bh6+ {[%clk 0:02:42]} 21. f4 {[%clk 0:01:41]}  g5 {[%clk 0:02:29]} 22. g4 {[%clk 0:01:37]}  Bd3 {[%clk 0:02:20]} 23. Rd1 {[%clk 0:01:34]}  gxf4 {[%clk 0:02:10]} 24. Rxd3 {[%clk 0:01:33]}  Rxd3 {[%clk 0:02:10]} 25. Bxd3 {[%clk 0:01:33]}  f3+ {[%clk 0:02:11]} 26. Kd1 {[%clk 0:01:32]}  Kg7 {[%clk 0:02:11]} 27. Bg1 {[%clk 0:01:22]} 1-0


[Site "https://www.chess.com"]

[Event "Titled Tuesday Blitz December 20 Late 2022"]
[White "Sanchez Alvares, Kelvin Antonio"]
[Black "Ardila, Oscar Humberto"]
[WhiteFideId "3906680"]
[BlackFideId "4404742"]
[WhiteElo "2217"]
[BlackElo "1961"]
[Result "1-0"]
[Round "08"]
[TimeControl "180+1"]
[Date "2022.12.21"]
[WhiteClock "0:01:07"]
[BlackClock "0:00:03"]

1. e4 {[%clk 0:03:00]}  e5 {[%clk 0:02:54]} 2. Nf3 {[%clk 0:03:00]}  Nc6 {[%clk 0:02:53]} 3. Bb5 {[%clk 0:03:00]}  a6 {[%clk 0:02:52]} 4. Ba4 {[%clk 0:03:00]}  Nf6 {[%clk 0:02:52]} 5. O-O {[%clk 0:02:59]}  b5 {[%clk 0:02:52]} 6. Bb3 {[%clk 0:02:59]}  Be7 {[%clk 0:02:53]} 7. Re1 {[%clk 0:02:58]}  O-O {[%clk 0:02:53]} 8. a4 {[%clk 0:02:58]}  Rb8 {[%clk 0:02:52]} 9. axb5 {[%clk 0:02:57]}  axb5 {[%clk 0:02:52]} 10. d3 {[%clk 0:02:58]}  d6 {[%clk 0:02:52]} 11. Nc3 {[%clk 0:02:58]}  Bg4 {[%clk 0:02:51]} 12. Be3 {[%clk 0:02:58]}  Nd4 {[%clk 0:02:40]} 13. Bxd4 {[%clk 0:02:58]}  exd4 {[%clk 0:02:41]} 14. Nd5 {[%clk 0:02:58]}  Nxd5 {[%clk 0:02:30]} 15. Bxd5 {[%clk 0:02:57]}  c5 {[%clk 0:02:30]} 16. h3 {[%clk 0:02:56]}  Bh5 {[%clk 0:02:30]} 17. g4 {[%clk 0:02:56]}  Bg6 {[%clk 0:02:30]} 18. Kg2 {[%clk 0:02:55]}  h5 {[%clk 0:02:28]} 19. Nd2 {[%clk 0:02:51]}  hxg4 {[%clk 0:02:25]} 20. hxg4 {[%clk 0:02:51]}  Bg5 {[%clk 0:02:23]} 21. Nf3 {[%clk 0:02:48]}  Bf4 {[%clk 0:02:22]} 22. Rh1 {[%clk 0:02:46]}  Qf6 {[%clk 0:02:17]} 23. Qe2 {[%clk 0:02:40]}  Rfc8 {[%clk 0:02:11]} 24. b3 {[%clk 0:02:38]}  Be5 {[%clk 0:01:42]} 25. Rh4 {[%clk 0:02:28]}  c4 {[%clk 0:01:20]} 26. Rah1 {[%clk 0:02:27]}  Kf8 {[%clk 0:01:20]} 27. Rh8+ {[%clk 0:02:27]}  Ke7 {[%clk 0:01:20]} 28. g5 {[%clk 0:02:25]}  Qf4 {[%clk 0:01:20]} 29. R8h4 {[%clk 0:02:23]}  cxd3 {[%clk 0:01:05]} 30. cxd3 {[%clk 0:02:24]}  Qxh4 {[%clk 0:00:21]} 31. Rxh4 {[%clk 0:02:09]}  Rd8 {[%clk 0:00:21]} 32. Nd2 {[%clk 0:01:42]}  Rdc8 {[%clk 0:00:21]} 33. f4 {[%clk 0:01:42]}  Rc2 {[%clk 0:00:18]} 34. fxe5 {[%clk 0:01:42]}  dxe5 {[%clk 0:00:18]} 35. Qd1 {[%clk 0:01:38]}  Rbc8 {[%clk 0:00:18]} 36. Rh1 {[%clk 0:01:38]}  R8c3 {[%clk 0:00:18]} 37. Kf2 {[%clk 0:01:32]}  Rb2 {[%clk 0:00:17]} 38. Kg3 {[%clk 0:01:30]}  Rxd3+ {[%clk 0:00:17]} 39. Nf3 {[%clk 0:01:27]}  Rxd1 {[%clk 0:00:13]} 40. Rxd1 {[%clk 0:01:28]}  f6 {[%clk 0:00:13]} 41. gxf6+ {[%clk 0:01:27]}  gxf6 {[%clk 0:00:13]} 42. Rc1 {[%clk 0:01:28]}  Be8 {[%clk 0:00:11]} 43. Nh4 {[%clk 0:01:26]}  Kd6 {[%clk 0:00:09]} 44. Nf5+ {[%clk 0:01:26]}  Kd7 {[%clk 0:00:10]} 45. Bc6+ {[%clk 0:01:25]}  Kd8 {[%clk 0:00:10]} 46. Bd5 {[%clk 0:01:25]}  d3 {[%clk 0:00:09]} 47. Rd1 {[%clk 0:01:24]}  d2 {[%clk 0:00:09]} 48. Ne3 {[%clk 0:01:21]}  Bh5 {[%clk 0:00:08]} 49. Rh1 {[%clk 0:01:21]}  Be2 {[%clk 0:00:06]} 50. Rh2 {[%clk 0:01:11]}  d1=Q {[%clk 0:00:06]} 51. Nxd1 {[%clk 0:01:11]}  Rd2 {[%clk 0:00:05]} 52. Ne3 {[%clk 0:01:10]}  Kc7 {[%clk 0:00:04]} 53. Rf2 {[%clk 0:01:07]}  Kd6 {[%clk 0:00:04]} 54. Nf5+ {[%clk 0:01:07]}  Kc5 {[%clk 0:00:03]} 55. Kg2 {[%clk 0:01:07]}  Kb4 {[%clk 0:00:03]} 56. Ng3 {[%clk 0:01:07]} 1-0


[Site "https://www.chess.com"]

[Event "Titled Tuesday Blitz December 20 Late 2022"]
[White "Shoker, Samy"]
[Black "ChessBrah"]
[WhiteFideId "627143"]
[WhiteElo "2493"]
[BlackElo "2888"]
[Result "0-1"]
[Round "08"]
[TimeControl "180+1"]
[Date "2022.12.21"]
[WhiteClock "0:00:02"]
[BlackClock "0:00:48"]

1. Nf3 {[%clk 0:02:59]}  d5 {[%clk 0:03:00]} 2. g3 {[%clk 0:03:00]}  Nf6 {[%clk 0:03:00]} 3. c4 {[%clk 0:03:00]}  c6 {[%clk 0:03:00]} 4. Bg2 {[%clk 0:02:59]}  e6 {[%clk 0:02:54]} 5. b3 {[%clk 0:02:59]}  Nbd7 {[%clk 0:02:54]} 6. O-O {[%clk 0:02:59]}  Bd6 {[%clk 0:02:55]} 7. Bb2 {[%clk 0:03:00]}  O-O {[%clk 0:02:56]} 8. d3 {[%clk 0:03:00]}  a5 {[%clk 0:02:56]} 9. a3 {[%clk 0:03:00]}  e5 {[%clk 0:02:55]} 10. Nc3 {[%clk 0:02:57]}  d4 {[%clk 0:02:55]} 11. Nb1 {[%clk 0:02:56]}  Re8 {[%clk 0:02:55]} 12. Nbd2 {[%clk 0:02:56]}  c5 {[%clk 0:02:55]} 13. Re1 {[%clk 0:02:55]}  h6 {[%clk 0:02:56]} 14. e3 {[%clk 0:02:55]}  Rb8 {[%clk 0:02:56]} 15. Qc2 {[%clk 0:02:50]}  b6 {[%clk 0:02:55]} 16. exd4 {[%clk 0:02:48]}  cxd4 {[%clk 0:02:54]} 17. Nh4 {[%clk 0:02:35]}  Qc7 {[%clk 0:02:43]} 18. Ne4 {[%clk 0:02:14]}  Nxe4 {[%clk 0:02:42]} 19. Bxe4 {[%clk 0:02:15]}  Nf6 {[%clk 0:02:41]} 20. Bg2 {[%clk 0:02:02]}  Bb7 {[%clk 0:02:39]} 21. Nf5 {[%clk 0:01:59]}  Bf8 {[%clk 0:02:38]} 22. Bxb7 {[%clk 0:01:52]}  Qxb7 {[%clk 0:02:39]} 23. Re2 {[%clk 0:01:49]}  b5 {[%clk 0:02:33]} 24. c5 {[%clk 0:01:42]}  Qc8 {[%clk 0:02:32]} 25. Nd6 {[%clk 0:01:40]}  Bxd6 {[%clk 0:02:31]} 26. cxd6 {[%clk 0:01:41]}  Qd7 {[%clk 0:02:12]} 27. Qc7 {[%clk 0:01:31]}  Rbc8 {[%clk 0:02:09]} 28. Qxa5 {[%clk 0:01:30]}  Rc5 {[%clk 0:01:28]} 29. a4 {[%clk 0:01:22]}  Rd5 {[%clk 0:01:21]} 30. Ba3 {[%clk 0:01:17]}  e4 {[%clk 0:01:14]} 31. dxe4 {[%clk 0:01:12]}  d3 {[%clk 0:01:14]} 32. Re3 {[%clk 0:01:01]}  Rh5 {[%clk 0:01:13]} 33. h4 {[%clk 0:00:55]}  Qh3 {[%clk 0:01:09]} 34. d7 {[%clk 0:00:44]}  Ng4 {[%clk 0:00:49]} 35. dxe8=Q+ {[%clk 0:00:38]}  Kh7 {[%clk 0:00:50]} 36. Qad8 {[%clk 0:00:01]}  Qh2+ {[%clk 0:00:47]} 37. Kf1 {[%clk 0:00:02]}  Qh1# {[%clk 0:00:48]} 0-1


[Site "https://www.chess.com"]